Cogmind - Beta 10.2 @@@ ROGUE MODE // 2021.10.22 @ 22:29:30 Player: TheGreatBorealis Result: Destroyed by S-43 Plague with Heavy Machine Gun Performance ------------- Evolutions (9) 4500 Regions Visited (16) 3200 Robots Destroyed (41) 205 Value Destroyed (1848) 1848 Prototype IDs (17) 340 Alien Tech Used (0) 0 Bonus (703) 703 TOTAL SCORE: 10796 Bonus ------- Follower Combat Kills 103 Aligned with FarCom 300 Met Imprinter 300 Cogmind --------- Core Integrity 0/1600 Matter 245/300 Energy 57/100 System Corruption 7% Temperature Cool (0) Movement Flying (40) Location -1/Access Parts ------- > --- POWER (2) -------- (None) > --- PROPULSION (6) --- Xenon Bombardment Thruster > --- UTILITY (15) ----- Experimental Terrain Scan Processor Advanced Target Analyzer Hacking Suite Improved Hacking Suite Experimental System Shield > --- WEAPON (2) ------- (None) > --- INVENTORY (4) ---- Improved Stasis Canceller Enhanced Nova Cannon Peak State ------------ > --- POWER ------------ Light Particle Reactor Light Quantum Reactor > --- PROPULSION ------- Xenon Bombardment Thruster Q-thruster Q-thruster Q-thruster Impulse Thruster Array > --- UTILITY ---------- Advanced Heat Sink Small Storage Unit Advanced Signal Interpreter Experimental Terrain Scan Processor Improved Melee Analysis Suite Advanced Target Analyzer Improved Armor Integrity Analyzer Microactuators Improved Stasis Canceller Reaction Control System EM Shield Hacking Suite Makeshift Hacking Suite Improved Hacking Suite Experimental System Shield > --- WEAPON ----------- Enhanced Force Lance Enhanced Force Lance > --- INVENTORY -------- Light Antimatter Reactor Xenon Bombardment Thruster Improved Phase Shifter Enhanced Nova Cannon Scatter Rocket Array Enhanced Force Lance [Rating: 157] Favorites ----------- Power Ion Engine Engine Ion Engine Power Core Light Fission Core Reactor Light Particle Reactor Propulsion Xenon Bombardment Thruster Treads Light Treads Leg Aluminum Leg Hover Unit Gyrokinetic Inverter Flight Unit Xenon Bombardment Thruster Utility Small Storage Unit Device Advanced Heat Sink Storage Small Storage Unit Processor Advanced Signal Interpreter Hackware Experimental System Shield Weapon Enhanced Force Lance Energy Gun Medium Laser Energy Cannon Enhanced Nova Cannon Ballistic Gun AWS/Gauss Launcher Scatter Rocket Array Impact Weapon Hammer Piercing Weapon Enhanced Force Lance Build | -11 -10 -10 -10 -9 -8 -7 -7 -7 -7 -6 -6 -5 -4 -3 -2 -1 ------- Run | Scr Mat Min Exi Min Mat Fac Low Low Zio Pro Fac Fac Fac Res Res Acc Slots Evolved 18 | . . . . . 4 2 . . . . 2 2 2 2 2 2 Power 1 | . . . . . 1 . . . . . . . . . . . Propulsion 4 | . . . . . 2 1 . . . . . . 1 . . . Utility 13 | . . . . . 1 1 . . . . 2 2 1 2 2 2 Weapon . | . . . . . . . . . . . . . . . . . Parts Attached 118 | . 6 2 1 . 3 16 2 . 6 3 6 2 2 38 4 27 Power 13 | . . . . . . 1 . . 2 2 2 . . 4 1 1 Engine 6 | . . . . . . 1 . . 2 2 1 . . . . . Core 4 | . . . . . . . . . . . 1 . . 3 . . Reactor 3 | . . . . . . . . . . . . . . 1 1 1 Propulsion 38 | . 2 . . . 2 9 . . . . . . 1 18 . 6 Treads 3 | . 2 . . . . . . . . . . . . 1 . . Leg 2 | . . . . . 2 . . . . . . . . . . . Wheel . | . . . . . . . . . . . . . . . . . Hover 2 | . . . . . . . . . . . . . 1 1 . . Flight 31 | . . . . . . 9 . . . . . . . 16 . 6 Utility 45 | . 2 1 . . 1 6 2 . 2 1 3 2 1 13 3 8 Device 29 | . 1 1 . . 1 2 2 . . . 1 1 . 12 2 6 Storage 3 | . 1 . . . . 2 . . . . . . . . . . Processor 9 | . . . . . . 2 . . 1 1 1 1 1 . . 2 Hackware 4 | . . . . . . . . . 1 . 1 . . 1 1 . Protection . | . . . . . . . . . . . . . . . . . Artifact . | . . . . . . . . . . . . . . . . . Weapon 22 | . 2 1 1 . . . . . 2 . 1 . . 3 . 12 Energy Gun . | . . . . . . . . . . . . . . . . . Energy Cannon 3 | . . . . . . . . . . . . . . . . 3 Ballistic Gun 1 | . . . 1 . . . . . . . . . . . . . Ballistic Cannon . | . . . . . . . . . . . . . . . . . Launcher 6 | . 1 . . . . . . . 1 . 1 . . 1 . 2 Special Weapon . | . . . . . . . . . . . . . . . . . Impact Weapon 2 | . 1 1 . . . . . . . . . . . . . . Slashing Weapon . | . . . . . . . . . . . . . . . . . Piercing Weapon 10 | . . . . . . . . . 1 . . . . 2 . 7 Special Melee Weapon . | . . . . . . . . . . . . . . . . . Unidentified Prototypes 9 | . . 1 1 . . . . . 1 . 1 1 . 3 1 . Parts Lost 30 | . . . . . . . . . . . . . . 4 1 25 Power 2 | . . . . . . . . . . . . . . . . 2 Propulsion 9 | . . . . . . . . . . . . . . 1 . 8 Utility 15 | . . . . . . . . . . . . . . 3 1 11 Weapon 4 | . . . . . . . . . . . . . . . . 4 Highest Loss Streak 21 | . . . . . . . . . . . . . . 1 1 21 Average Slot Usage (%) 90 | . 100 100 92 85 76 75 84 84 94 100 98 100 98 90 94 90 Engine 7 | . 14 14 14 14 9 14 15 15 15 15 6 5 5 2 . . Core 1 | . . . . . . . . . . . 5 5 5 4 2 . Reactor 1 | . . . . . . . . . . . . . . 1 5 7 Treads 7 | . 8 28 28 28 18 . . . . . . . . 1 . . Leg 3 | . 19 . . . 17 . . . . . . . . . . . Flight 15 | . . . . . . 36 38 38 38 38 33 29 26 17 21 18 Device 14 | . 14 14 14 14 14 7 7 7 1 . 4 11 10 20 20 18 Storage 7 | . 14 14 14 14 9 5 7 7 7 7 6 5 5 4 4 3 Processor 10 | . . . . . . 8 15 15 15 15 14 17 19 14 13 19 Hackware 6 | . . . . . . . . . 5 7 12 11 10 11 17 15 Ballistic Gun 4 | . 14 14 13 14 9 2 . . . . . . . . . . Launcher 1 | . . 7 . . . . . . 5 7 6 5 5 2 . . Impact Weapon 1 | . 6 6 7 . . . . . . . . . . . . . Piercing Weapon 3 | . . . . . . . . . 3 7 6 5 5 6 8 6 Naked Turns . | . . . . . . . . . . . . . . . . . Heaviest Build 63 | 13 27 40 45 45 46 19 13 13 23 23 31 32 32 52 55 63 Greatest Support 77 | 20 40 40 40 40 40 26 14 14 28 32 32 32 32 77 63 67 Greatest Overweight (x) 2 | . . . 1 1 1 . . . . . . . . 1 . 2 Average Overweight (x) . | . . . . 1 1 . . . . . . . . . . . Largest Inventory Capacity 10 | . 10 10 10 10 10 10 6 6 6 6 6 6 6 6 6 6 Average Capacity 7 | . 7 10 10 10 10 5 6 6 6 6 6 6 6 6 6 5 Most Carried 10 | . 6 7 9 10 10 10 6 6 6 6 6 5 6 6 6 6 Average Carried 6 | . 5 6 7 9 9 5 6 5 5 6 5 4 5 5 5 5 Final Capacity 10 | 6 10 10 10 10 10 6 6 6 6 6 6 6 6 6 6 4 Final Carried 10 | 6 6 7 9 10 10 6 6 6 6 6 6 5 6 6 6 2 Class Distribution -------------------- 38% | Mutant 30% | Hacker-Sprinter 16% | Hacker-Scout 5% | Skirmisher 4% | Derelict-Sprinter Dominant Class ---------------- Mutant | -10/Materials Mutant | -10/Mines Mutant | -10/Exiles Mutant | -9/Mines Mutant | -8/Materials Scout | -7/Factory Mutant | -7/Lower Caves Mutant | -7/Lower Caves Derelict-Sprinter | -7/Zion Derelict-Sprinter | -6/Proximity Caves Hacker-Sprinter | -6/Factory Hacker-Scout | -5/Factory Hacker-Scout | -4/Factory Hacker-Sprinter | -3/Research Hacker-Sprinter | -2/Research Hacker-Sprinter | -1/Access Resources | -11 -10 -10 -10 -9 -8 -7 -7 -7 -7 -6 -6 -5 -4 -3 -2 -1 ----------- Run | Scr Mat Min Exi Min Mat Fac Low Low Zio Pro Fac Fac Fac Res Res Acc Matter Collected 1344 | 200 37 . . 16 94 . 30 32 58 150 50 . 50 426 46 155 Remotely . | . . . . . . . . . . . . . . . . . Salvage Created 1890 | . 79 . . . 451 . . . . . . . 78 614 46 622 Parts 125 | . 2 . . . 37 . . . . . . . 7 43 2 34 Haulers Intercepted . | . . . . . . . . . . . . . . . . . Recyclers Shooed . | . . . . . . . . . . . . . . . . . Parts Field Recycled . | . . . . . . . . . . . . . . . . . Retrieved Matter . | . . . . . . . . . . . . . . . . . Parts Self-Destructed 1 | . . . . . . . 1 . . . . . . . . . Prevented . | . . . . . . . . . . . . . . . . . Kills | -11 -10 -10 -10 -9 -8 -7 -7 -7 -7 -6 -6 -5 -4 -3 -2 -1 ------- Run | Scr Mat Min Exi Min Mat Fac Low Low Zio Pro Fac Fac Fac Res Res Acc Combat Hostiles Destroyed 32 | . 2 . . . 10 . . . . . . . . 7 . 13 Melee 15 | . . . . . . . . . . . . . . 7 . 8 Guns 12 | . 2 . . . 10 . . . . . . . . . . . AOE 5 | . . . . . . . . . . . . . . . . 5 Classes Destroyed 8 | . 1 . . . 5 . . . . . . . . 2 . . Worker 2 | . . . . . 2 . . . . . . . . . . . Operator 1 | . . . . . . . . . . . . . . 1 . . Watcher 6 | . . . . . 2 . . . . . . . 2 1 1 . Swarmer 13 | . . . . . 5 . . . . . . . . . . 8 Grunt 4 | . 2 . . . 2 . . . . . . . . . . . Brawler 1 | . . . . . 1 . . . . . . . . . . . Sentry 9 | . . . . . 2 . . . . . . . . 4 . 3 Programmer 5 | . . . . . . . . . . . . . . 3 . 2 Best Kill Streak 6 | . 2 . . . 5 . . . . . . . 2 2 1 6 Combat Bots Only 6 | . 2 . . . 5 . . . . . . . . 2 . 6 Max Kills in Single Turn 5 | . 1 . . . 1 . . . . . . . 1 1 1 5 Gunslinging . | . . . . . . . . . . . . . . . . . Exploded 5 | . . . . . . . . . . . . . . . . 5 Melee 2 | . . . . . . . . . . . . . . 1 . 2 Uniques/NPCs Destroyed . | . . . . . . . . . . . . . . . . . Combat | -11 -10 -10 -10 -9 -8 -7 -7 -7 -7 -6 -6 -5 -4 -3 -2 -1 -------- Run | Scr Mat Min Exi Min Mat Fac Low Low Zio Pro Fac Fac Fac Res Res Acc Damage Taken 4250 | . 97 . . . 87 . 38 43 . 73 36 . . 757 139 2980 Core 1863 | . 34 . . . . . 20 23 . 20 . . . 120 29 1617 Absorbed by Shields . | . . . . . . . . . . . . . . . . . Core Remaining (%) 96 | 100 . . . 86 100 . . . . 91 100 100 100 90 98 . Volleys Fired 31 | . 9 . . . . . . . . . . . . . . 22 Largest 2 | . 2 . . . . . . . . . . . . . . 1 Hottest 120 | . 70 . . . . . . . . . . . . . . 120 Shots Fired 83 | . 18 . . . 42 . . . . . . . . 1 . 22 Gun 60 | . 18 . . . 42 . . . . . . . . . . . Cannon 21 | . . . . . . . . . . . . . . . . 21 Launcher 2 | . . . . . . . . . . . . . . 1 . 1 Special . | . . . . . . . . . . . . . . . . . Kinetic 51 | . 9 . . . 42 . . . . . . . . . . . Thermal 30 | . 9 . . . . . . . . . . . . . . 21 Explosive 2 | . . . . . . . . . . . . . . 1 . 1 Electromagnetic . | . . . . . . . . . . . . . . . . . Robot Hit Streak 24 | . 6 . . . 24 . . . . . . . . . . 1 Robot Miss Streak 5 | . 1 . . . 1 . . . . . . . . . . 5 Penetration Max . | . . . . . . . . . . . . . . . . . Secondary Targets . | . . . . . . . . . . . . . . . . . Autonomous 42 | . . . . . 42 . . . . . . . . . . . Shots Hit Robots 107 | . 14 . . . 37 . . . . 2 . . 3 29 2 20 Core Hits 76 | . 4 . . . 23 . . . . 1 . . 2 16 2 28 Critical Hits 9 | . . . . . . . . . . . . . . 5 . 4 Critical Kills 7 | . . . . . . . . . . . . . . 4 . 3 Critical Parts Destroyed 2 | . . . . . . . . . . . . . . 1 . 1 Melee Attacks 202 | . 1 3 . . . . . . . 7 14 2 18 74 7 76 Impact 4 | . 1 3 . . . . . . . . . . . . . . Slashing . | . . . . . . . . . . . . . . . . . Piercing 198 | . . . . . . . . . . 7 14 2 18 74 7 76 Sneak Attacks . | . . . . . . . . . . . . . . . . . Combat Hostiles . | . . . . . . . . . . . . . . . . . Follow-up Attacks 5 | . . . . . . . . . . . . . . 2 . 3 Damage Inflicted 5022 | . 165 . . . 1318 . . . . 57 . . 137 1362 158 1825 Guns 1373 | . 165 . . . 1208 . . . . . . . . . . . Cannons . | . . . . . . . . . . . . . . . . . Explosions 732 | . . . . . 110 . . . . . . . . . . 622 Melee 2917 | . . . . . . . . . . 57 . . 137 1362 158 1203 Ramming . | . . . . . . . . . . . . . . . . . Kinetic 1298 | . 90 . . . 1208 . . . . . . . . . . . Thermal 75 | . 75 . . . . . . . . . . . . . . . Explosive 622 | . . . . . . . . . . . . . . . . 622 Electromagnetic 110 | . . . . . 110 . . . . . . . . . . . Impact . | . . . . . . . . . . . . . . . . . Slashing . | . . . . . . . . . . . . . . . . . Piercing 2917 | . . . . . . . . . . 57 . . 137 1362 158 1203 Highest Corruption 7 | . . . . . . . . . . . . . . 7 . 7 Average Corruption 5 | . . . . . . . . . . . . . . 5 . 3 Corruption Purged . | . . . . . . . . . . . . . . . . . Effects 23 | . . . . . . . . . . . . . . 22 . 1 Message Errors 6 | . . . . . . . . . . . . . . 6 . . Matter Fused 4 | . . . . . . . . . . . . . . 3 . 1 Heat Flow Errors 6 | . . . . . . . . . . . . . . 6 . . Parts Rejected 1 | . . . . . . . . . . . . . . 1 . . Data Loss (minor) 1 | . . . . . . . . . . . . . . 1 . . Data Loss (major) 2 | . . . . . . . . . . . . . . 2 . . Misfires 1 | . . . . . . . . . . . . . . 1 . . Targeting Errors 2 | . . . . . . . . . . . . . . 2 . . Overload Shots . | . . . . . . . . . . . . . . . . . Overflow Damage 56 | . . . . . . . . . . . . . . 29 . 27 Projectiles . | . . . . . . . . . . . . . . . . . Explosions 30 | . . . . . . . . . . . . . . 5 . 25 Melee 26 | . . . . . . . . . . . . . . 24 . 2 Knockbacks . | . . . . . . . . . . . . . . . . . Impact . | . . . . . . . . . . . . . . . . . Kinetic . | . . . . . . . . . . . . . . . . . Secondary . | . . . . . . . . . . . . . . . . . Self-Inflicted Damage 38 | . . . . . . . . . . . . . . 38 . . Shots 2 | . . . . . . . . . . . . . . 2 . . Rammed . | . . . . . . . . . . . . . . . . . Targets Rammed . | . . . . . . . . . . . . . . . . . Kicked . | . . . . . . . . . . . . . . . . . Crushed . | . . . . . . . . . . . . . . . . . Highest Temperature 245 | . 75 . . . . 2 . . 24 158 59 . . 180 . 245 Average Temperature 51 | . 37 . . . . 1 . . 8 49 22 . . 69 . 88 Received Heat Transfer 336 | . 54 . . . 18 . 18 9 . 27 12 . . 45 18 135 Siege Activations . | . . . . . . . . . . . . . . . . . Robots Corrupted . | . . . . . . . . . . . . . . . . . Combat Hostiles . | . . . . . . . . . . . . . . . . . Parts Fried . | . . . . . . . . . . . . . . . . . Impact Corruptions . | . . . . . . . . . . . . . . . . . Robots Melted . | . . . . . . . . . . . . . . . . . Combat Hostiles . | . . . . . . . . . . . . . . . . . Parts Melted 2 | . 2 . . . . . . . . . . . . . . . Heat Transferred 222 | . 222 . . . . . . . . . . . . . . . Parts Sabotaged . | . . . . . . . . . . . . . . . . . Parts Stolen . | . . . . . . . . . . . . . . . . . Parts Stripped . | . . . . . . . . . . . . . . . . . Power Chain Reactions . | . . . . . . . . . . . . . . . . . Missiles Intercepted . | . . . . . . . . . . . . . . . . . Alert | -11 -10 -10 -10 -9 -8 -7 -7 -7 -7 -6 -6 -5 -4 -3 -2 -1 ------- Run | Scr Mat Min Exi Min Mat Fac Low Low Zio Pro Fac Fac Fac Res Res Acc Peak Influence 364 | . 160 45 . . 281 87 . . . . 118 61 188 364 250 251 Initial 204 | . . . . . . 87 . . . . 46 57 29 98 204 144 Average 109 | . 88 4 . . 160 87 . . . . 71 57 121 165 217 82 Maximum Alert Level 1 | . . . . . 1 . . . . . . . . 1 1 1 Low Security (%) 85 | . 100 100 . 100 62 100 . . . . 100 100 100 73 . 98 Level 1 14 | . . . . . 37 . . . . . . . . 26 100 1 Level 2 . | . . . . . . . . . . . . . . . . . Level 3 . | . . . . . . . . . . . . . . . . . Level 4 . | . . . . . . . . . . . . . . . . . Level 5 . | . . . . . . . . . . . . . . . . . High Security . | . . . . . . . . . . . . . . . . . Max Security . | . . . . . . . . . . . . . . . . . Squads Dispatched 10 | . 1 . . . 4 . . 1 . . . . 1 1 . 2 Investigation . | . . . . . . . . . . . . . . . . . Extermination 4 | . . . . . . . . . . . . . 1 1 . 2 Reinforcement 2 | . 1 . . . 1 . . . . . . . . . . . Assault 1 | . . . . . . . . 1 . . . . . . . . Garrison 3 | . . . . . 3 . . . . . . . . . . . Intercept . | . . . . . . . . . . . . . . . . . Construction Impeded . | . . . . . . . . . . . . . . . . . Haulers Reinforced . | . . . . . . . . . . . . . . . . . Stealth | -11 -10 -10 -10 -9 -8 -7 -7 -7 -7 -6 -6 -5 -4 -3 -2 -1 --------- Run | Scr Mat Min Exi Min Mat Fac Low Low Zio Pro Fac Fac Fac Res Res Acc Distress Signals 2 | . . . . . 1 . . . . . . . . 1 . . Communications Jammed . | . . . . . . . . . . . . . . . . . Distress Signals . | . . . . . . . . . . . . . . . . . Times Spotted 90 | . 8 4 . . 15 . 3 5 . 7 1 . 3 12 2 30 Peak Tracking Total 12 | . 3 2 . . 4 . 4 9 . 4 1 . 1 6 1 12 Tactical Retreats 15 | . . 1 . . 1 . 1 3 . 2 . . . 3 . 4 Traps | -11 -10 -10 -10 -9 -8 -7 -7 -7 -7 -6 -6 -5 -4 -3 -2 -1 ------- Run | Scr Mat Min Exi Min Mat Fac Low Low Zio Pro Fac Fac Fac Res Res Acc Traps Triggered 6 | . . . . . . 2 . . . . . . . 4 . . Indirectly . | . . . . . . . . . . . . . . . . . Trap Hack Attempts . | . . . . . . . . . . . . . . . . . Triggered . | . . . . . . . . . . . . . . . . . Disarmed . | . . . . . . . . . . . . . . . . . Reprogrammed . | . . . . . . . . . . . . . . . . . Reused . | . . . . . . . . . . . . . . . . . Traps Extracted . | . . . . . . . . . . . . . . . . . Installed . | . . . . . . . . . . . . . . . . . Triggered 1 | . . . . . . . . . . 1 . . . . . . Machines | -11 -10 -10 -10 -9 -8 -7 -7 -7 -7 -6 -6 -5 -4 -3 -2 -1 ---------- Run | Scr Mat Min Exi Min Mat Fac Low Low Zio Pro Fac Fac Fac Res Res Acc Machines Disabled 1 | . . . . . 1 . . . . . . . . . . . Max in Single Turn 1 | . . . . . 1 . . . . . . . . . . . Garrison Access 4 | . . . . . . 1 . . . . . 1 . 2 . . Machines Sabotaged . | . . . . . . . . . . . . . . . . . Garrisons Compromised . | . . . . . . . . . . . . . . . . . Overloaded Fab Kills . | . . . . . . . . . . . . . . . . . Fab Network Shutdowns . | . . . . . . . . . . . . . . . . . Hacking | -11 -10 -10 -10 -9 -8 -7 -7 -7 -7 -6 -6 -5 -4 -3 -2 -1 --------- Run | Scr Mat Min Exi Min Mat Fac Low Low Zio Pro Fac Fac Fac Res Res Acc Machines Accessed 29 | . 5 1 . . 1 1 . . . . 3 2 3 7 1 5 Terminals 23 | . 5 . . . 1 . . . . . 3 1 3 5 1 4 Fabricators . | . . . . . . . . . . . . . . . . . Repair Stations . | . . . . . . . . . . . . . . . . . Recycling Units . | . . . . . . . . . . . . . . . . . Scanalyzers . | . . . . . . . . . . . . . . . . . Garrison Access 5 | . . . . . . 1 . . . . . 1 . 2 . 1 Total Hacks 76 | . 17 1 . . 2 1 . . . . 7 4 9 19 4 12 Successful 29 | . 7 1 . . 1 1 . . . . 3 2 4 6 1 3 Failed 47 | . 10 . . . 1 . . . . . 4 2 5 13 3 9 Catastrophic 10 | . 2 . . . . . . . . . 3 . 1 1 1 2 Database Lockouts . | . . . . . . . . . . . . . . . . . Manual 16 | . 5 . 1 . . . . . 2 . . 2 . 3 2 1 Terminals 68 | . 17 . . . 2 . . . . . 7 3 9 16 4 10 Fabricators . | . . . . . . . . . . . . . . . . . Repair Stations . | . . . . . . . . . . . . . . . . . Recycling Units . | . . . . . . . . . . . . . . . . . Scanalyzers . | . . . . . . . . . . . . . . . . . Garrison Access 7 | . . . . . . 1 . . . . . 1 . 3 . 2 Terminal Hacks 25 | . 7 1 . . 1 . . . . . 3 1 4 4 1 3 Record 1 | . . . . . . . . . . . . . 1 . . . Part Schematic 2 | . . . . . . . . . . . 1 . . 1 . . Prototype ID Bank 3 | . 1 . . . . . . . . . . 1 1 . . . Open Door 1 | . . 1 . . . . . . . . . . . . . . Branch Access Points 3 | . . . . . 1 . . . . . 1 . . . 1 . Emergency Access Points 1 | . 1 . . . . . . . . . . . . . . . Terminal Index 1 | . 1 . . . . . . . . . . . . . . . Garrison Index 1 | . . . . . . . . . . . . . 1 . . . Alert Level 2 | . 1 . . . . . . . . . 1 . . . . . Unreport Threat 2 | . . . . . . . . . . . . . . . . 2 Locate Traps 3 | . 2 . . . . . . . . . . . . 1 . . Patrol Status 1 | . . . . . . . . . . . . . . . . 1 Registered Components 1 | . 1 . . . . . . . . . . . . . . . Registered Prototypes 1 | . . . . . . . . . . . . . . 1 . . Zone Layout 2 | . . . . . . . . . . . . . 1 1 . . Fabricator Hacks . | . . . . . . . . . . . . . . . . . Repair Station Hacks . | . . . . . . . . . . . . . . . . . Recycling Unit Hacks . | . . . . . . . . . . . . . . . . . Scanalyzer . | . . . . . . . . . . . . . . . . . Garrison Access Hacks 4 | . . . . . . 1 . . . . . 1 . 2 . . Seal Access 4 | . . . . . . 1 . . . . . 1 . 2 . . Unauthorized Hacks . | . . . . . . . . . . . . . . . . . Terminals . | . . . . . . . . . . . . . . . . . Fabricators . | . . . . . . . . . . . . . . . . . Repair Stations . | . . . . . . . . . . . . . . . . . Recycling Units . | . . . . . . . . . . . . . . . . . Scanalyzers . | . . . . . . . . . . . . . . . . . Garrison Access . | . . . . . . . . . . . . . . . . . Data Cores Recovered 1 | . . . . . . . . . . . . . . 1 . . Used 1 | . . . . . . . . . . . . . . 1 . . Hacking Detections 23 | . 5 . . . . . . . . . 3 1 3 5 1 5 Full Trace Events . | . . . . . . . . . . . . . . . . . Feedback Events . | . . . . . . . . . . . . . . . . . Feedback Blocked . | . . . . . . . . . . . . . . . . . Robot Schematics Acquired . | . . . . . . . . . . . . . . . . . Robots Built . | . . . . . . . . . . . . . . . . . Matter . | . . . . . . . . . . . . . . . . . Time . | . . . . . . . . . . . . . . . . . Total Robot Build Rating . | . . . . . . . . . . . . . . . . . Part Schematics Acquired 2 | . . . . . . . . . . . 1 . . 1 . . Parts Built . | . . . . . . . . . . . . . . . . . Matter . | . . . . . . . . . . . . . . . . . Time . | . . . . . . . . . . . . . . . . . Total Part Build Rating . | . . . . . . . . . . . . . . . . . Parts Repaired . | . . . . . . . . . . . . . . . . . Time . | . . . . . . . . . . . . . . . . . Parts Recycled . | . . . . . . . . . . . . . . . . . Recycled Matter . | . . . . . . . . . . . . . . . . . Retrieved Matter . | . . . . . . . . . . . . . . . . . Retrieved Components . | . . . . . . . . . . . . . . . . . Parts Scanalyzed . | . . . . . . . . . . . . . . . . . Part Schematics Acquired . | . . . . . . . . . . . . . . . . . Parts Damaged . | . . . . . . . . . . . . . . . . . Bothacking | -11 -10 -10 -10 -9 -8 -7 -7 -7 -7 -6 -6 -5 -4 -3 -2 -1 ------------ Run | Scr Mat Min Exi Min Mat Fac Low Low Zio Pro Fac Fac Fac Res Res Acc Used RIF Installer . | . . . . . . . . . . . . . . . . . Robots Hacked . | . . . . . . . . . . . . . . . . . Non-combat . | . . . . . . . . . . . . . . . . . Combat . | . . . . . . . . . . . . . . . . . Robot Hacks Applied . | . . . . . . . . . . . . . . . . . Relay Couplers Released . | . . . . . . . . . . . . . . . . . Robots Rewired . | . . . . . . . . . . . . . . . . . Allies Hacked . | . . . . . . . . . . . . . . . . . Hacks Repelled . | . . . . . . . . . . . . . . . . . Allies | -11 -10 -10 -10 -9 -8 -7 -7 -7 -7 -6 -6 -5 -4 -3 -2 -1 -------- Run | Scr Mat Min Exi Min Mat Fac Low Low Zio Pro Fac Fac Fac Res Res Acc Total Allies 3 | . . . . 3 . . . . . . . . . . . . Largest Group 3 | . . . . 3 3 . . . . . . . . . . . Highest-Rated Group 40 | . . . . 40 40 . . . . . . . . . . . Highest-Rated Ally 16 | . . . . 16 16 . . . . . . . . . . . Total Orders 14 | . . 3 . 5 2 1 2 . . . . . . 1 . . ROAM 6 | . . 1 . 1 2 . 1 . . . . . . 1 . . RETURN 8 | . . 2 . 4 . 1 1 . . . . . . . . . Ally Attacks 19 | . . . . . 19 . . . . . . . . . . . Total Damage 208 | . . . . . 208 . . . . . . . . . . . Kills 4 | . . . . . 4 . . . . . . . . . . . Allies Corrupted . | . . . . . . . . . . . . . . . . . Allies Melted . | . . . . . . . . . . . . . . . . . Intel | -11 -10 -10 -10 -9 -8 -7 -7 -7 -7 -6 -6 -5 -4 -3 -2 -1 ------- Run | Scr Mat Min Exi Min Mat Fac Low Low Zio Pro Fac Fac Fac Res Res Acc Robot Analysis Total . | . . . . . . . . . . . . . . . . . Derelict Logs Recovered 2 | . . 1 . . . . 1 . . . . . . . . . Drone Launches 82 | . . 20 . 20 20 1 20 . . . . . . 1 . . Drone Recoveries 76 | . . 20 . 20 20 1 14 . . . . . . 1 . . Exploration | -11 -10 -10 -10 -9 -8 -7 -7 -7 -7 -6 -6 -5 -4 -3 -2 -1 ------------- Run | Scr Mat Min Exi Min Mat Fac Low Low Zio Pro Fac Fac Fac Res Res Acc Turns Passed 5568 | . 409 284 384 281 697 129 212 81 243 134 166 131 331 1131 69 886 Spaces Moved 7529 | 1 280 154 226 115 311 133 270 211 662 355 405 256 507 1872 167 1604 Core 65 | . . . . . . . . . . . . . . . . 65 Treads 874 | . 68 154 226 115 311 . . . . . . . . . . . Legs 213 | 1 212 . . . . . . . . . . . . . . . Wheels . | . . . . . . . . . . . . . . . . . Hover . | . . . . . . . . . . . . . . . . . Flight 6377 | . . . . . . 133 270 211 662 355 405 256 507 1872 167 1539 Fastest Speed 26 | 120 120 160 160 180 180 28 37 37 31 28 28 28 28 26 28 28 Average Speed 50 | 120 129 160 169 180 180 33 37 37 33 29 28 28 28 36 28 29 Slowest Speed 180 | 120 160 160 180 180 180 37 37 37 37 31 28 28 28 111 28 150 Overloaded Moves . | . . . . . . . . . . . . . . . . . Propulsion Burnouts . | . . . . . . . . . . . . . . . . . Robots Hopped 17 | . . . . . . 1 . 1 . 1 2 2 . 8 . 2 Cave-ins Triggered . | . . . . . . . . . . . . . . . . . Exploration Rate (%) 41 | 1 65 99 62 90 32 6 73 45 77 58 6 7 12 41 7 30 Regions Visited 16 Branch Regions 7 Pre-discovered Areas 2 | . . . . . . . . . 2 . . . . . . . Known Exits Taken 10 | . . . . 1 1 1 . . 1 1 1 1 1 1 1 . Unknown Exits Taken 6 | 1 1 1 1 . . . 1 1 . . . . . . . . Scrap Searched 9 | . . . . 1 . . 1 2 2 3 . . . . . . Spaces Dug 129 | . 1 2 . . . . . . . . 14 2 11 33 3 63 Terrain Destroyed 196 | . 1 2 . . 7 . . . . . 14 2 11 66 3 90 Melee 108 | . 1 2 . . . . . . . . 14 2 11 33 3 42 Projectile 28 | . . . . . 7 . . . . . . . . . . 21 AOE 60 | . . . . . . . . . . . . . . 33 . 27 Terrain Rammed . | . . . . . . . . . . . . . . . . . Walls Destroyed . | . . . . . . . . . . . . . . . . . Machines Disabled . | . . . . . . . . . . . . . . . . . Actions | -11 -10 -10 -10 -9 -8 -7 -7 -7 -7 -6 -6 -5 -4 -3 -2 -1 --------- Run | Scr Mat Min Exi Min Mat Fac Low Low Zio Pro Fac Fac Fac Res Res Acc Total 8920 | . 305 187 228 190 453 218 380 212 686 374 440 310 676 2215 177 1869 Wait 947 | . 6 28 . 73 127 22 109 . 11 9 12 52 147 209 . 142 Move 7479 | . 279 153 225 114 310 130 269 208 661 352 400 251 506 1855 166 1600 Hop 17 | . . . . . . 1 . 1 . 1 2 2 . 8 . 2 Pick Up 32 | . 1 . . 2 8 . . 2 3 . 1 1 2 9 . 3 Fast Attach 51 | . 2 1 1 . . 3 . . 2 1 5 . 2 22 3 9 Attach 30 | . . . . . 3 6 . . 1 . 1 2 . 9 1 7 Detach 18 | . . 1 2 . . 3 . . 1 . 2 . . 6 1 2 Swap 37 | . 4 1 . . . 7 2 . 3 2 . . . 7 . 11 Drop 61 | . 3 . . 1 5 10 . 1 4 2 3 . 1 23 1 7 Fire 31 | . 9 . . . . . . . . . . . . . . 22 Melee 181 | . 1 3 . . . . . . . 7 14 2 18 67 5 64 Ram . | . . . . . . . . . . . . . . . . . Kick . | . . . . . . . . . . . . . . . . . Crush . | . . . . . . . . . . . . . . . . . Escape Stasis 36 | . . . . . . 36 . . . . . . . . . . Rewire . | . . . . . . . . . . . . . . . . . Trap . | . . . . . . . . . . . . . . . . . Miscellaneous . | . . . . . . . . . . . . . . . . . Route ------- -11/Scrapyard -10/Materials (discovered 3 exits: *Mat / *Min x2) -10/Mines (discovered 3 exits: *Mat x2 / *Exi) -10/Exiles (discovered 2 exits: [*Min x2]) -9/Mines (discovered 2 exits: *Mat x2) -8/Materials -7/Factory -7/Lower Caves -7/Lower Caves -7/Zion -6/Proximity Caves -6/Factory (discovered 3 exits: *Fac / Low x2) -5/Factory -4/Factory (discovered 2 exits: *Res / *Upp) -3/Research (discovered 3 exits: *Res / *Qua x2) -2/Research (discovered 3 exits: *Acc / Tes x2) -1/Access History --------- Turn | Location | Event 1 | -11/Scrapyard | Discovered new exit (range 0) 1 | -11/Scrapyard | Entered Materials 40 | -10/Materials | Discovered new exit (range 14) 132 | -10/Materials | Discovered new exit (range 8) 198 | -10/Materials | Discovered new exit (range 16) 318 | -10/Materials | Build established: Mutant 410 | -10/Materials | Entered Mines 453 | -10/Mines | Met a Derelict bent on vengeance 490 | -10/Mines | Found the Drone Emporium 496 | -10/Mines | Found Prototype Device 496 | -10/Mines | Identified Sensor Drone Bay 540 | -10/Mines | Discovered new exit (range 51) 605 | -10/Mines | Identified exit to Materials 611 | -10/Mines | Discovered exit to Materials (range 61) 637 | -10/Mines | Learned location of 1 exit from Materials 688 | -10/Mines | Deemed a non-threat by the Exiles lab entrance 688 | -10/Mines | Discovered new exit (range 5) 694 | -10/Mines | Entered Exiles 715 | -10/Exiles | Discovered new exit (range 15) 738 | -10/Exiles | Met 8R-AWN 760 | -10/Exiles | Met EX-HEX 805 | -10/Exiles | Met EX-BIN 824 | -10/Exiles | Aligned with FarCom system 826 | -10/Exiles | Given EX-Vault access code 883 | -10/Exiles | Opened EX-Vault 891 | -10/Exiles | Found Prototype Ballistic Gun 891 | -10/Exiles | Identified AWS/Gauss 930 | -10/Exiles | Warned to stay clear of 0b10 Research branches 986 | -10/Exiles | Met EX-DEC 1061 | -10/Exiles | Discovered new exit (range 10) 1078 | -10/Exiles | Left Exiles lab with AWS/Gauss 1078 | -10/Exiles | Entered Mines 1133 | -9/Mines | Discovered new exit (range 35) 1142 | -9/Mines | Discovered new exit (range 47) 1146 | -9/Mines | Identified exit to Materials 1343 | -9/Mines | Assisted by bots powering up and referring to "LRC-V3" 1359 | -9/Mines | Entered Materials 1359 | -8/Materials | Accompanied by 3 allies 1359 | -8/Materials | Evolved 4 slots: Power x1, Propulsion x2, Utility x1 1360 | -8/Materials | Identified exit to Factory 1417 | -8/Materials | Garrison activated, responded to threat 2056 | -8/Materials | Entered Factory 2056 | -7/Factory | Evolved 2 slots: Propulsion x1, Utility x1 2174 | -7/Factory | Discovered new exit (range 16) 2182 | -7/Factory | Identified exit to Lower Caves 2185 | -7/Factory | Entered Lower Caves 2187 | -7/Lower Caves | Learned Factory trap positions 2254 | -7/Lower Caves | Discovered new exit (range 138) 2391 | -7/Lower Caves | Spotted B-75 Beast 2397 | -7/Lower Caves | Entered another Lower Caves area 2402 | -7/Lower Caves | Attracted the attention of an 0b10 outpost 2473 | -7/Lower Caves | Discovered new exit (range 14) 2478 | -7/Lower Caves | Encountered a Warlord checkpoint 2478 | -7/Lower Caves | Entered Zion 2513 | -7/Zion | Learned location of Recycling (-7) 2534 | -7/Zion | Learned location of Warlord (-5) 2540 | -7/Zion | Found Prototype Hackware 2541 | -7/Zion | Identified Exp. System Shield 2543 | -7/Zion | Found Prototype Processor 2565 | -7/Zion | Rebuked by Imprinter 2606 | -7/Zion | Received a visual enhancement algorithm 2716 | -7/Zion | Discovered new exit (range 10) 2717 | -7/Zion | Acquired unknown access codes intercepted by a Zionite 2721 | -7/Zion | Identified exit to Proximity Caves 2721 | -7/Zion | Entered Proximity Caves 2814 | -6/Proximity Caves | Spotted B-75 Beast 2854 | -6/Proximity Caves | Discovered new exit (range 3) 2855 | -6/Proximity Caves | Identified exit to Factory 2855 | -6/Proximity Caves | Entered Factory 2855 | -6/Factory | Evolved 2 slots: Utility x2 2856 | -6/Factory | Loaded intel: 71 trap records 2934 | -6/Factory | Identified exit to Lower Caves 2971 | -6/Factory | Found Prototype Launcher 2971 | -6/Factory | Identified Scatter Rocket Array 2986 | -6/Factory | Discovered new exit (range 9) 3019 | -6/Factory | Identified exit to Factory 3021 | -6/Factory | Entered another Factory area 3021 | -5/Factory | Evolved 2 slots: Utility x2 3021 | -5/Factory | Identified Exp. Terrain Scan Processor 3149 | -5/Factory | Discovered new exit (range 8) 3151 | -5/Factory | Identified exit to Factory 3152 | -5/Factory | Entered another Factory area 3152 | -4/Factory | Evolved 2 slots: Propulsion x1, Utility x1 3190 | -4/Factory | Discovered new exit (range 5) 3191 | -4/Factory | Identified exit to Upper Caves 3317 | -4/Factory | Build established: Hacker-Scout 3415 | -4/Factory | Discovered new exit (range 10) 3482 | -4/Factory | Identified exit to Research 3483 | -4/Factory | Entered Research 3483 | -3/Research | Evolved 2 slots: Utility x2 3835 | -3/Research | Spotted B-86 Titan 4071 | -3/Research | Found Enh. Force Lance 4074 | -3/Research | Found Enh. Force Lance 4077 | -3/Research | Found Enh. Force Lance 4078 | -3/Research | Discovered new exit (range 6) 4098 | -3/Research | Identified exit to Quarantine 4252 | -3/Research | Build established: Hacker-Sprinter 4415 | -3/Research | Discovered exit to Quarantine (range 12) 4586 | -3/Research | Discovered new exit (range 8) 4611 | -3/Research | Identified exit to Research 4614 | -3/Research | Entered another Research area 4614 | -2/Research | Evolved 2 slots: Utility x2 4648 | -2/Research | Identified exit to Testing 4676 | -2/Research | Discovered new exit (range 6) 4680 | -2/Research | Identified exit to Access 4683 | -2/Research | Entered Access 4683 | -1/Access | Evolved 2 slots: Utility x2 5530 | -1/Access | Core integrity fell below 50% 5547 | -1/Access | Core integrity fell below 20% 5569 | -1/Access | Destroyed by S-43 Plague with Heavy Machine Gun Last Messages --------------- 05527_ Y-72 Warden crushed by falling debris. 05527_ Dropped Sml. Storage Unit. 05527_ S-43 Plague IFF system glitched. 05530_ P-80 Master resets S-43 Plague, system corruption cleaned. 05531_ The unstable cave ceiling collapses. 05533_ Penetrated by Slug. 05533_ Slug penetrates Wall. 05539_ Penetrated by Slug. 05539_ Slug penetrates Wall. 05548_ Adv. Signal Interpreter destroyed. 05548_ Imp. Melee Analysis Suite destroyed. 05559_ System corrupted: Matter fused (-10). 05559_ Imp. Armor Integrity Analyzer destroyed. 05560_ S-43 Plague suffers critical hit. 05560_ S-43 Plague destroyed. 05560_ Enh. Force Lance follow-up attack on S-43 Plague. 05560_ S-43 Plague destroyed. [Achievement: Ambidextrous] 05566_ Enh. Force Lance destroyed. 05568_ Acquired Xenon Bombardment Thruster. Map ----- +----------------------------------------------------+ | ??????????# # #???????? | | ??????????# # #???????? | | ?########## # #???????? | | # !#???????? | | / #???????? | | ########### # #???????? | | ??????????# # #???????? | | ??????????# # s #???????? | | ??????????# # Y #???????? | | ??????????# # #???????? | | ??????????# # #???????? | | ??????????# / #???????? | | ??????????# ############/#???????? | | ??????????# s???????????#p#???????? | | ??????????# ???????????# #???????? | | ??????????# ???????????# #???????? | | ??????????? ???????????#s#???????? | | ??????????? ???????????# #???????? | | ??????????? ???????????# #???????? | | ????????????s???????????# #???????? | | ????????????????????????# #???????? | | ????????????????????????# #???????? | | ????????????????????????#=#????? # | | ?????????????######+#####p##?? # | | ??????????# [=s# # | | ??????????# *@=s # | | ?????????????###+########### # | | ????????????????????????????? # | | ?????????????????????????????? # | | ???????????????????????????????? # | | ??????????????????????????????????# | | ??????????????????????????????????? | | ??????????????????????????????????? | | ??????????????????????????????????? | | ??????????????????????????????????? | | ??????????????????????????????????? | | ??????????????????????????????????? | | ??????????????????h???????????????? | | ??????????????????????????????????? | | ??????????????????????????????????? | | ?????????????????????h????????????? | | ??????????????????????????????????? | | ??????????????????????????????????? | | ??????????????????????????????????? | | ??????????????????????????????????? | | ??????????????????????????????????? | | ??????????????????????????????????? | | ??????????????????????????????????? | | ??????????????????????????????????? | | ??????????????????????????????????? | +----------------------------------------------------+ Best States ------------- Heat Dissipation 78 Energy Generation 43 Energy Capacity 360 Matter Stores 300 Matter Capacity 300 Sight Range 20 Terrain Scan Range 16 Terrain Scan Density 1010 Resistance: TH 25 Resistance: EM 25 Melee Speed Boost 20 Phase Shifting 10 Evasion (%) 86 Targeting Accuracy 8 Melee Accuracy 11 Target Analysis 8 Armor Integrity Analysis 50 Recoil Reduction 2 Stasis Canceling 1 Offensive Hacking 33 Defensive Hacking 16 Item Schematics ----------------- Imp. Coolant Injector | -6/Factory | Hacked Q-thruster | -3/Research | Hacked Robot Schematics ------------------ None Fabricated ------------ Nothing Alien Tech Used ----------------- None Achievements -------------- Ambidextrous Challenges ------------ None Game ------ Seed CouplerHardlightDevice Manual? 0 Play Time 01:40:28 Cumulative 103.7 hours Start 2021.10.22 @ 20:51:34 End 2021.10.22 @ 22:29:30 Sessions 1 Manual Loads 0 Difficulty Rogue Special Mode None Game No. 180 Rogue 180 Adventurer 0 Explorer 0 Win Type - Total 0 Types 0/0/0/0/0/0/0/0/0 Lore% 59 Gallery% 61 Achievement% 44 Wizard Run 0 Options --------- ASCII 0 Keyboard 1 Movement Numpad Keybinds 0 Fullscreen 2 Font 18/Terminus Map View 76x50 Tactical HUD 1 Map Filters NONE Filters NONE Steam 1 RUN: ed85964c-985c-479b-ad31-5e69b0c7cab2